bitfinex-derivatives/quotes_ETHF0:USTF0_20241230
["timestamp","ask_amount","ask_price","bid_price","bid_amount"]
[1735584522738,0.29429,3401.2,3401.0,3.2078]
[1735584523248,3.2078,3401.7,3401.0,3.2078]
[1735584523640,0.29429,3401.3,3401.0,3.2078]
[1735584524242,0.2943,3401.1,3401.0,3.2078]
[1735584525545,3.2078,3401.7,3401.0,3.2078]
[1735584525743,0.2943,3401.1,3401.0,3.2078]
[1735584526043,0.29431,3401.0,3400.9,0.463]
[1735584526740,2.82977104,3401.4,3400.7,0.4381]
[1735584526741,0.73572,3401.3,3400.7,0.4381]
[1735584526940,0.73572,3401.3,3400.0,3.6644]
[1735584526941,2.82977104,3401.0,3400.0,3.6644]
[1735584527140,0.73586,3400.6,3400.0,0.4566]
[1735584527342,0.29438,3400.1,3400.0,0.4566]
[1735584527547,0.29437,3400.3,3400.0,0.4566]
[1735584527847,0.96611861,3401.0,3400.0,3.6644]
[1735584528149,0.29435,3400.6,3400.2,0.29437]
[1735584528641,0.2943,3401.1,3400.4,3.50215]
[1735584528840,0.73575,3401.2,3400.5,0.4466]
[1735584529037,0.29434,3400.6,3400.5,0.4466]
[1735584529235,0.29434,3400.7,3400.5,0.4466]
[1735584529846,3.62099104,3401.3,3400.5,0.4466]
[1735584530040,0.29429,3401.2,3400.9,0.29431]
[1735584530240,0.29428,3401.4,3400.8,3.2078]
[1735584530438,0.29428,3401.4,3401.0,0.29431]
[1735584530643,0.29428,3401.4,3401.1,0.2943]
[1735584530847,0.96957182,3401.8,3401.0,40.8]
[1735584530848,0.23396182,3401.8,3401.0,40.8]
[1735584531049,0.29429,3401.2,3401.0,40.8]
[1735584531246,0.2943,3401.1,3400.9,0.4667]
[1735584531453,2.82977104,3401.7,3400.9,0.4667]
[1735584531454,0.29431,3401.0,3400.9,0.4667]
[1735584531949,3.2078,3401.5,3400.9,0.4667]
[1735584532156,0.29431,3401.0,3400.9,0.4667]
[1735584534352,0.73569,3401.4,3400.8,3.2078]
[1735584534353,0.29431,3400.9,3400.8,3.2078]
[1735584537259,3.12408104,3400.9,3400.8,3.2078]
[1735584537560,3.12408104,3400.9,3399.2,1.47229]
[1735584537561,3.56558104,3400.9,3400.4,3.2078]
[1735584537758,0.29435,3400.5,3400.4,3.2078]
[1735584539358,0.29435,3400.5,3399.8,0.76051]
[1735584539359,0.29439,3400.0,3399.8,3.96831]
[1735584539559,0.73591,3400.4,3399.8,3.6739]
[1735584539763,0.2944,3399.9,3399.8,3.6739]
[1735584540261,0.2944,3399.9,3399.8,0.4661]
[1735584540457,3.2078,3399.9,3398.9,3.2078]
[1735584540657,0.29448,3399.0,3398.9,3.2078]
[1735584541056,0.29448,3399.0,3398.7,0.9553]
[1735584541057,0.2945,3398.8,3398.7,0.4778]
[1735584541255,3.2078,3399.0,3398.0,0.481]
[1735584541256,0.73624,3398.9,3398.0,0.481]
[1735584541563,0.29449,3398.9,3398.5,0.29452]
[1735584541763,0.2945,3398.8,3398.3,3.50233]
[1735584541958,0.29451,3398.7,3398.3,3.50233]
[1735584542354,3.2078,3399.0,3398.4,0.29453]
[1735584542557,3.2078,3399.0,3398.3,3.2078]
[1735584543258,0.29452,3398.5,3398.3,3.2078]
[1735584544561,3.2078,3399.0,3398.3,3.2078]
[1735584544757,3.2078,3399.5,3398.7,6.03757104]
[1735584544962,3.2078,3399.5,3398.8,0.4531]
[1735584545165,3.2078,3399.5,3399.2,0.29445]
[1735584545766,3.2078,3399.5,3398.9,0.9213]
[1735584545964,0.29444,3399.4,3399.0,0.29448]
[1735584546163,0.29448,3399.0,3398.9,0.4371]
[1735584546472,0.29449,3398.9,3398.3,3.50233]
[1735584546665,0.29451,3398.7,3398.4,0.74493]
[1735584546974,0.29451,3398.7,3398.4,41.54493]
[1735584547265,0.29451,3398.7,3398.4,41.2504]
[1735584547472,3.79641084,3399.4,3398.4,41.2504]
[1735584547671,0.29449,3398.9,3398.6,0.29451]
[1735584547869,0.29445,3399.3,3398.4,41.2504]
[1735584548070,0.73616,3399.2,3398.4,41.2504]
[1735584548265,0.2945,3398.8,3398.5,0.29451]
[1735584548959,0.29451,3398.7,3398.5,0.29451]
[1735584549364,0.29452,3398.6,3398.4,41.54492]
[1735584549564,0.29452,3398.6,3398.5,0.74822]
[1735584549970,0.29451,3398.7,3398.5,0.74822]
[1735584550473,2.82977104,3399.4,3398.5,0.4537]
[1735584550674,0.29448,3399.0,3398.9,3.2078]
[1735584550865,0.29444,3399.5,3399.4,0.29444]
[1735584551065,3.2078,3400.0,3399.3,3.2078]
[1735584551370,0.29443,3399.5,3399.4,1.19144]
[1735584551558,0.29439,3400.0,3399.4,1.19144]
[1735584551763,0.29439,3400.0,3399.8,0.29441]
[1735584552969,0.2944,3400.0,3399.7,0.29441]
[1735584553265,3.44310683,3400.5,3399.4,0.897]
[1735584553572,0.29439,3400.0,3399.8,0.2944]
[1735584553960,3.44310683,3400.5,3399.4,0.897]
[1735584554173,3.44310683,3400.5,3399.7,3.2078]
[1735584554566,0.2944,3400.0,3399.7,3.50222]
[1735584554865,3.44310683,3400.5,3399.7,3.2078]
[1735584554866,0.29439,3400.1,3399.7,3.2078]
[1735584555069,0.29437,3400.3,3399.8,0.29441]
[1735584555268,0.29437,3400.3,3399.7,3.2078]
[1735584555269,0.29437,3400.3,3399.9,0.2944]
[1735584555473,0.29438,3400.1,3399.8,0.2944]
[1735584555672,0.29435,3400.5,3399.9,0.2944]
[1735584555872,0.29437,3400.3,3399.9,0.2944]
[1735584556270,3.2078,3400.9,3400.1,3.2078]
[1735584556568,3.2078,3400.9,3400.2,0.9183]
[1735584556771,3.50212,3400.9,3400.5,0.29434]
[1735584556971,0.29432,3400.9,3400.6,3.2078]
[1735584557168,9.48680821,3401.4,3400.7,0.29433]
[1735584557370,0.7357,3401.3,3400.6,3.2078]
[1735584557569,0.29432,3400.9,3400.6,3.2078]
[1735584558470,0.2943,3401.1,3400.7,0.29433]
[1735584558675,0.29432,3400.9,3400.6,3.2078]
[1735584558972,6.26948568,3401.4,3400.6,3.50213]
[1735584558973,0.29431,3401.0,3400.6,3.50213]
[1735584559274,0.29429,3401.2,3400.8,0.29432]
[1735584560075,6.03757104,3401.4,3400.6,3.2078]
[1735584560668,3.50207,3401.4,3401.0,0.2943]
[1735584560868,0.29428,3401.3,3401.1,0.9283]
[1735584561174,3.2078,3401.4,3401.1,1.22259]
[1735584561175,3.50207,3401.4,3401.1,1.22259]
[1735584561374,0.29427,3401.4,3401.1,1.22259]
[1735584561873,0.29427,3401.4,3401.1,0.9283]
[1735584562265,0.29427,3401.4,3401.1,0.4681]
[1735584562266,0.29429,3401.2,3401.1,0.4681]
[1735584563476,0.29432,3400.9,3400.6,3.2078]
[1735584563669,0.29432,3400.9,3400.6,3.7022]
[1735584564175,0.29429,3401.2,3400.7,0.29433]
[1735584564366,0.29429,3401.2,3400.8,0.29432]
[1735584564772,3.2078,3401.5,3400.6,3.7022]
[1735584565072,0.29429,3401.2,3400.8,0.29432]
[1735584565264,0.29428,3401.3,3400.9,0.29431]
[1735584565471,0.2943,3401.1,3400.8,0.29432]
[1735584566077,3.2078,3401.5,3400.6,3.7022]
[1735584566272,0.29429,3401.3,3401.0,0.2943]
[1735584566775,0.29429,3401.3,3400.6,44.5022]
[1735584566776,0.29429,3401.2,3400.9,0.29431]
[1735584566964,0.2943,3401.1,3400.8,0.29432]
[1735584567772,0.2943,3401.1,3400.6,3.7022]
[1735584567773,0.29429,3401.2,3400.9,0.29431]
[1735584567971,0.29429,3401.2,3400.8,0.29432]
[1735584568174,3.2078,3401.5,3400.8,0.29432]
[1735584568175,0.2943,3401.1,3400.8,0.29432]
[1735584568976,0.29431,3401.0,3400.7,0.29433]
[1735584569170,2.82977104,3401.4,3400.6,3.7022]
[1735584569375,0.7357,3401.3,3400.6,3.7022]
[1735584569671,2.82977104,3401.4,3400.6,3.7022]
[1735584569875,0.2943,3401.1,3400.8,0.29432]
[1735584570266,6.30738217,3401.5,3400.6,3.7022]
[1735584570469,6.30738217,3401.5,3400.8,0.29432]
[1735584570672,2.36390217,3401.5,3401.0,3.2078]
[1735584570872,0.29429,3401.2,3401.0,3.2078]
[1735584571677,0.29429,3401.3,3401.0,3.5021]
[1735584571877,3.44923717,3401.7,3401.0,3.2078]
[1735584572480,0.29426,3401.6,3401.2,0.29428]
[1735584572975,0.29427,3401.4,3401.3,0.4516]
[1735584573179,2.36390217,3401.8,3401.3,0.4516]
[1735584573379,2.65816217,3401.5,3401.4,0.4552]
[1735584573678,0.2943,3401.1,3401.0,3.2078]
[1735584573875,2.65820217,3401.1,3401.0,3.2078]
[1735584575970,2.65820217,3401.1,3400.5,0.4516]
[1735584576175,2.65820217,3401.1,3400.6,3.2078]
[1735584576176,0.29433,3400.7,3400.6,3.2078]
[1735584578679,0.29437,3400.3,3400.2,0.4552]
[1735584579680,0.29436,3400.5,3400.2,0.74957]
[1735584579882,0.29436,3400.4,3400.2,0.74957]
[1735584580082,0.29437,3400.3,3400.2,0.4552]
[1735584580384,5.57170217,3400.7,3400.3,0.29436]
[1735584580581,0.29435,3400.5,3400.3,0.29436]
[1735584580885,0.29435,3400.5,3400.4,0.4756]
[1735584581385,5.57170217,3400.7,3400.1,3.2078]
[1735584581583,0.29437,3400.2,3400.1,3.2078]
[1735584581980,0.29442,3399.7,3399.6,4.0802]
[1735584582279,0.29442,3399.7,3399.6,0.8724]
[1735584583085,0.29442,3399.7,3399.2,3.2078]
[1735584583086,0.29445,3399.3,3399.2,3.2078]
[1735584586186,0.29447,3399.1,3399.0,0.8703]
[1735584587789,0.23970443,3399.6,3399.0,0.8703]
[1735584587990,0.29446,3399.2,3399.0,0.8703]
[1735584588187,2.42980217,3399.7,3399.0,0.8703]
[1735584588390,0.29447,3399.1,3399.0,0.8703]
[1735584588785,0.29447,3399.2,3399.0,0.8703]
[1735584589493,5.57170217,3399.4,3399.0,0.8703]
[1735584589494,0.29446,3399.3,3399.0,0.8703]
[1735584589795,5.57170217,3399.4,3399.0,0.8703]
[1735584589989,0.29447,3399.1,3399.0,0.8703]
[1735584591595,0.29446,3399.2,3399.0,0.8703]
[1735584591990,0.29447,3399.1,3399.0,0.8703]
[1735584592295,0.2945,3398.7,3398.6,3.2078]
[1735584592494,0.2945,3398.7,3398.6,3.6705]
[1735584595296,2.36390217,3398.8,3398.1,3.2078]
[1735584595496,2.36390217,3398.8,3398.0,0.4452]
[1735584595497,0.29456,3398.1,3398.0,0.4452]
[1735584595699,0.29456,3398.1,3397.8,0.4366]
[1735584595700,0.29457,3397.9,3397.8,0.4366]
[1735584596193,2.36390217,3398.1,3397.8,0.4366]
[1735584596194,2.36390217,3398.4,3397.8,0.4366]
[1735584596400,3.2078,3398.5,3397.9,0.73977]
[1735584596401,0.29454,3398.3,3397.9,0.73977]
[1735584596594,0.29454,3398.4,3398.0,0.29456]
[1735584596801,6.54938934,3398.8,3397.9,0.4452]
[1735584596991,0.29454,3398.3,3397.9,0.73977]
[1735584597405,0.29454,3398.3,3398.0,0.29456]
[1735584597703,0.29454,3398.3,3397.9,0.73977]
[1735584598099,0.29456,3398.1,3397.9,0.4452]
[1735584598401,0.29455,3398.2,3397.9,0.73977]
[1735584598994,0.29454,3398.3,3397.9,0.73977]
[1735584599191,2.36390217,3398.5,3397.9,0.4452]
[1735584599391,3.2078,3398.9,3398.0,3.2078]
[1735584599599,2.36390217,3398.8,3398.0,3.2078]
[1735584599790,0.29454,3398.3,3398.0,3.50236]
[1735584600397,2.36390217,3398.8,3398.0,3.2078]
[1735584600603,0.29456,3398.2,3398.0,3.2078]
[1735584600901,2.36390217,3398.8,3398.0,3.2078]
[1735584601198,0.29449,3398.9,3398.6,0.2945]
[1735584601394,2.59927355,3399.4,3398.7,0.4407]
[1735584601594,3.44923717,3399.6,3398.9,3.2078]
[1735584601796,0.29446,3399.3,3399.0,0.29448]
[1735584601997,3.44923717,3399.6,3399.2,0.29445]
[1735584601998,0.29444,3399.5,3399.2,0.29445]
[1735584602196,2.36390217,3399.7,3398.9,3.2078]
[1735584602197,0.29446,3399.2,3398.9,3.50228]
[1735584602395,0.29446,3399.3,3399.0,0.29448]
[1735584602599,0.29445,3399.4,3399.1,0.29447]
[1735584603102,0.29442,3399.7,3399.3,3.50225]
[1735584603304,3.44923717,3399.9,3399.3,3.50225]
[1735584603505,0.29443,3399.6,3399.3,3.50225]
[1735584603908,2.36390217,3400.0,3399.3,3.50225]
[1735584603909,2.36390217,3400.0,3399.4,0.4258]
[1735584604107,3.2078,3400.1,3399.5,0.4387]
[1735584604305,0.29439,3400.0,3399.6,0.29442]
[1735584604612,0.2944,3400.0,3399.6,0.29442]
[1735584605110,3.2078,3400.1,3399.8,0.2944]
[1735584605309,2.36390217,3400.6,3399.9,3.2078]
[1735584605509,0.29436,3400.4,3400.0,0.29439]
[1735584605817,0.29436,3400.4,3399.9,3.2078]
[1735584605818,0.29437,3400.3,3399.9,3.5022]
[1735584606013,3.2078,3400.7,3399.9,3.2078]
[1735584606312,3.50213,3400.7,3400.3,0.29436]
[1735584606513,0.29433,3400.8,3400.4,0.8906]
[1735584606712,0.29433,3400.8,3400.4,1.324]
[1735584607012,0.29431,3401.0,3400.7,3.2078]
[1735584607219,3.44923717,3401.4,3400.7,3.2078]
[1735584607220,0.2943,3401.1,3400.7,3.2078]
[1735584607611,0.29431,3401.0,3400.7,3.2078]
[1735584607812,0.2943,3401.1,3400.7,3.2078]
[1735584608011,0.23471487,3401.3,3400.7,3.2078]
[1735584608218,2.36390217,3401.2,3400.7,3.2078]
[1735584608614,0.29432,3400.8,3400.7,3.2078]
[1735584610317,0.29435,3400.5,3400.4,1.324]
[1735584610521,0.29436,3400.4,3400.3,3.2078]
[1735584610715,0.29434,3400.6,3399.8,0.2944]
[1735584610921,0.29437,3400.3,3399.9,0.4257]
[1735584611116,3.2078,3400.7,3400.0,0.4448]
[1735584611317,0.29434,3400.6,3400.1,3.50218]
[1735584611513,2.82722817,3401.1,3400.1,3.2078]
[1735584611823,0.29437,3400.2,3400.1,3.2078]
[1735584612121,2.82722817,3400.3,3399.7,0.4629]
[1735584612122,0.29441,3399.8,3399.7,0.4629]
[1735584612321,2.82722817,3400.3,3399.7,0.4629]
[1735584612322,0.2944,3399.9,3399.7,0.4629]
[1735584612521,0.29437,3400.2,3399.7,0.4629]
[1735584612722,0.29439,3400.1,3399.7,0.4629]
[1735584613219,0.29439,3400.0,3399.7,0.4629]
[1735584613419,3.56306817,3400.7,3399.7,0.4629]
[1735584613420,8.56306817,3400.7,3399.7,0.4629]
[1735584613722,0.29441,3399.8,3399.7,0.4629]
[1735584615023,0.29441,3399.9,3399.7,0.4629]
[1735584615224,0.29441,3399.8,3399.7,0.4629]
[1735584619932,7.01238534,3400.3,3399.7,0.4629]
[1735584620133,0.2944,3400.0,3399.7,0.4629]
[1735584620426,3.74361717,3400.2,3399.8,0.29441]
[1735584620629,0.29438,3400.1,3399.7,0.75731]
[1735584621230,0.29439,3400.0,3399.7,0.4629]
[1735584621426,0.29441,3399.8,3399.7,0.4629]
[1735584622531,0.29444,3399.4,3399.3,0.8705]
[1735584623236,0.73603,3399.8,3399.2,0.4484]
[1735584623435,0.29445,3399.3,3399.2,0.4484]
[1735584628240,0.29449,3398.8,3398.7,0.8692]
[1735584628931,6.03502817,3399.5,3398.7,0.8692]
[1735584628932,0.29448,3399.0,3398.7,0.8692]
[1735584629332,6.27322539,3399.5,3398.7,0.8692]
[1735584629531,0.29449,3398.8,3398.7,0.8692]
[1735584631041,3.94399,3399.1,3398.6,0.4527]
[1735584631236,0.2945,3398.7,3398.6,0.4527]
[1735584632436,3.2078,3399.1,3398.6,0.4527]
[1735584632835,3.2078,3399.1,3398.9,0.29448]
[1735584633040,3.50227,3399.1,3399.0,0.4376]
[1735584633240,0.29447,3399.1,3399.0,41.2376]
[1735584633433,0.29446,3399.2,3399.0,41.2376]
[1735584633640,0.29446,3399.2,3399.0,0.4376]
[1735584633841,3.44923717,3399.3,3399.0,0.4376]
[1735584634043,3.2078,3399.6,3399.0,0.4376]
[1735584634441,0.29446,3399.3,3399.0,0.73207]
[1735584634744,0.29443,3399.6,3399.3,0.29445]
[1735584634943,0.29443,3399.5,3399.4,0.4264]
[1735584637441,0.29445,3399.3,3399.2,3.2078]
[1735584637636,0.29449,3398.9,3398.8,0.4564]
[1735584642646,0.24065102,3399.1,3399.0,0.29448]
[1735584642842,1.60458819,3399.2,3399.1,0.29447]
[1735584643037,0.90948819,3399.2,3399.1,2.66175013]
[1735584643241,4.61313502,3399.4,3399.3,0.29445]
[1735584643647,4.61313502,3399.4,3399.1,40.8]
[1735584643842,4.61313502,3399.4,3399.1,0.29446]
[1735584644049,0.29443,3399.6,3399.0,3.2078]
[1735584644342,0.29441,3399.8,3399.5,3.2078]
[1735584644841,2.36728013,3400.2,3399.7,0.29441]
[1735584645047,0.29437,3400.2,3399.9,3.2078]
[1735584645844,2.66165013,3400.2,3399.9,3.2078]
[1735584646243,0.29439,3400.0,3399.9,3.2078]
[1735584646442,2.36728013,3400.2,3399.5,3.2078]
[1735584646639,0.29441,3399.8,3399.6,0.41654502]
[1735584646844,2.36728013,3400.2,3399.5,3.2078]
[1735584646845,0.2944,3399.9,3399.7,0.41654502]
[1735584647050,0.2944,3399.9,3399.5,3.2078]
[1735584647251,2.36728013,3400.2,3399.6,0.4165148]
[1735584647449,0.2944,3400.0,3399.7,0.4165148]
[1735584647745,0.2944,3399.9,3399.8,0.41652266]
[1735584648146,0.29439,3400.0,3399.8,0.41652266]
[1735584648343,0.29439,3400.0,3399.5,3.2078]
[1735584648544,0.29439,3400.0,3399.6,0.41659121]
[1735584648744,2.36728013,3400.2,3399.5,3.2078]
[1735584648952,0.2944,3399.9,3399.5,3.50223]
[1735584649145,0.2944,3399.9,3399.6,0.41669602]
[1735584649451,0.29439,3400.0,3399.7,0.41664736]
[1735584649652,0.29439,3400.0,3399.8,0.41664736]
[1735584649948,0.29439,3400.0,3399.5,3.50223]
[1735584650248,0.2944,3399.9,3399.6,0.41654526]
[1735584650452,0.2944,3399.9,3399.7,0.41654526]
[1735584650651,0.2944,3399.9,3399.5,3.50223]
[1735584650851,2.36728013,3400.2,3399.6,0.41646553]
[1735584651049,0.2944,3400.0,3399.7,0.41646553]
[1735584651249,0.2944,3400.0,3399.5,3.50223]
[1735584651449,0.2944,3400.0,3399.6,0.41628957]
[1735584651654,0.2944,3400.0,3399.7,0.41628957]
[1735584651950,0.2944,3400.0,3399.5,3.50223]
[1735584652147,0.2944,3400.0,3399.6,0.41648903]
[1735584652343,0.2944,3399.9,3399.7,0.41663682]
[1735584652546,0.2944,3399.9,3399.5,3.2078]
[1735584652747,0.2944,3399.9,3399.6,0.4166054]
[1735584652949,0.29442,3399.7,3399.3,1.3278]
[1735584653147,2.36728013,3399.9,3399.4,0.41662644]
[1735584653148,0.29443,3399.6,3399.4,0.41662644]
[1735584653341,0.73193,3399.6,3399.5,0.41662644]
[1735584653746,0.4375,3399.6,3399.5,0.41662644]
[1735584655948,0.73193,3399.6,3399.5,0.41662644]
[1735584656351,0.4375,3399.6,3399.5,0.41662644]
[1735584657950,0.73193,3399.6,3399.5,0.41662644]
[1735584658346,0.73193,3399.6,3399.3,1.16495]
[1735584658552,0.73193,3399.6,3399.4,0.4162049]
[1735584658854,0.73193,3399.6,3399.5,0.4162049]
[1735584660251,0.4375,3399.6,3399.5,0.41629947]
[1735584660556,0.29444,3399.4,3399.3,0.4219]
[1735584661152,0.4375,3399.6,3399.3,0.4219]
[1735584661347,0.29442,3399.7,3399.4,0.71059987]
[1735584661554,0.29444,3399.5,3399.3,0.4219]
[1735584661950,0.29443,3399.6,3399.4,0.41624283]
[1735584662155,0.29443,3399.6,3399.5,0.41624283]
[1735584662350,0.29443,3399.6,3398.7,4.58731792]
[1735584662351,5.86951013,3399.6,3398.7,4.58731792]
[1735584662548,2.66177013,3398.9,3398.8,0.41665555]
[1735584662747,2.66177013,3398.9,3398.7,0.41665555]
[1735584662748,0.29449,3398.8,3398.7,0.41665555]
[1735584662949,0.2945,3398.7,3398.6,5.90824424]
[1735584663151,0.7336,3398.7,3398.6,3.91858047]
[1735584663453,5.4391,3398.7,3397.7,0.4551]
[1735584663650,0.29458,3397.8,3397.7,0.4551]
[1735584663854,0.29459,3397.7,3397.6,4.28121441]
[1735584664751,3.2078,3397.8,3397.6,4.28121441]
[1735584664949,0.29458,3397.8,3397.6,4.28121441]
[1735584665162,0.29458,3397.8,3397.7,0.4409]
[1735584665752,5.76806394,3398.0,3397.7,0.4409]
[1735584665951,5.76806394,3398.0,3397.8,3.2078]
[1735584666259,0.29458,3397.9,3397.7,0.4409]
[1735584666457,4.61710201,3398.2,3397.7,0.4409]
[1735584667054,0.29457,3398.0,3397.7,0.4409]
[1735584667660,0.29457,3398.0,3397.9,0.00203515]
[1735584668252,4.61710201,3398.3,3397.9,0.00203515]
[1735584668457,4.61710201,3398.3,3398.0,3.2078]
[1735584668754,4.91164201,3398.4,3398.1,0.4619]
[1735584668954,4.61710201,3398.4,3398.1,0.4619]
[1735584669361,0.29455,3398.2,3398.1,0.4619]
[1735584669756,0.29454,3398.3,3398.1,0.4619]
[1735584669955,0.29455,3398.2,3398.1,0.4619]
[1735584671663,0.29456,3398.0,3397.9,0.00203515]
[1735584671863,0.29456,3398.0,3397.9,1e-08]
[1735584672466,5.29456,3398.0,3397.9,1e-08]
[1735584673757,0.29456,3398.0,3397.9,1e-08]
[1735584673958,4.22375419,3398.0,3397.9,1e-08]
[1735584674466,9.22375419,3398.0,3397.9,1e-08]
[1735584674959,9.45491713,3398.0,3397.9,1e-08]
[1735584675464,4.45491713,3398.0,3397.9,1e-08]
[1735584676460,4.22375419,3398.0,3397.9,1e-08]
[1735584676855,0.29456,3398.0,3397.9,1e-08]
[1735584678867,0.73646,3397.8,3397.1,0.4242]
[1735584679070,0.29466,3396.9,3396.8,0.4593]
[1735584679767,2.36728013,3397.0,3396.7,3.2078]
[1735584680062,0.29467,3396.8,3396.7,3.2078]
[1735584680660,0.29469,3396.5,3396.4,0.4278]
[1735584683164,3.94447,3396.9,3396.4,0.4278]
[1735584683165,3.2078,3396.9,3396.4,0.4278]
[1735584683366,0.29469,3396.5,3396.4,0.4278]
[1735584684167,3.2078,3396.9,3396.4,0.4278]
[1735584684377,0.29467,3396.8,3396.4,0.7225]
[1735584684666,0.29464,3397.2,3396.5,3.2078]
[1735584684858,2.36728013,3397.3,3396.5,3.2078]
[1735584685061,2.36728013,3397.3,3396.5,3.50249]
[1735584685062,0.29466,3396.9,3396.5,3.50249]
[1735584685663,3.2078,3397.4,3396.5,3.2078]
[1735584685873,2.36728013,3397.3,3396.5,3.2078]
[1735584686171,0.29468,3396.7,3396.5,3.2078]
[1735584686365,0.29468,3396.6,3396.5,3.2078]
[1735584689071,2.36728013,3397.0,3396.5,3.2078]
[1735584689072,0.29468,3396.7,3396.5,3.2078]
[1735584689269,2.36728013,3397.0,3396.5,3.2078]
[1735584689472,0.29468,3396.6,3396.5,3.2078]
[1735584690369,2.36728013,3397.3,3396.5,3.2078]
[1735584690568,5.50767367,3397.4,3396.5,3.2078]
[1735584690872,0.29464,3397.2,3396.8,0.29467]
[1735584691071,0.29464,3397.2,3396.9,0.9015]
[1735584691667,0.29464,3397.1,3396.9,0.9015]
[1735584691864,4.6671538,3397.6,3397.2,0.29463]
[1735584692169,2.29987367,3397.6,3397.5,3.50241]
[1735584692374,1.89924367,3398.0,3397.6,0.29459]
[1735584692574,1.89924367,3398.0,3397.3,2.36728013]
[1735584692575,1.89924367,3398.0,3397.9,3.2078]
[1735584692763,0.29458,3397.8,3397.7,0.4392]
[1735584693074,2.66186013,3397.8,3397.7,0.4392]
[1735584694770,0.29456,3398.1,3397.7,0.73379]
[1735584694977,0.29458,3397.9,3397.7,0.4392]
[1735584695177,5.57508013,3398.7,3397.7,5.4392]
[1735584695373,0.29452,3398.5,3398.1,0.29455]
[1735584695576,0.29451,3398.6,3398.2,0.4294]
[1735584695778,0.29454,3398.3,3398.2,0.4294]
[1735584696179,3.2078,3398.7,3398.2,0.4294]
[1735584696180,0.29452,3398.6,3398.2,0.72394]
[1735584696879,0.29453,3398.4,3398.2,0.4294]
[1735584697078,5.57508013,3398.7,3398.2,0.4294]
[1735584697976,0.29452,3398.6,3398.2,0.72394]
[1735584698182,0.29452,3398.6,3398.2,0.4294]
[1735584698377,0.29451,3398.6,3398.2,0.4294]
[1735584698576,2.36728013,3398.7,3398.2,0.4294]
[1735584698772,0.29452,3398.5,3398.2,0.4294]
[1735584698975,2.66181013,3398.4,3398.2,0.4294]
[1735584699176,0.29454,3398.3,3398.2,0.4294]
[1735584701489,0.29454,3398.3,3398.0,3.2078]
[1735584701490,0.29455,3398.1,3398.0,3.2078]
[1735584701780,2.66183013,3398.1,3398.0,3.2078]
[1735584704683,3.45554895,3398.4,3398.0,3.2078]
[1735584704882,3.45554895,3398.4,3398.3,0.29454]
[1735584705289,3.45554895,3398.4,3398.1,0.29455]
[1735584705681,2.66180013,3398.6,3398.2,0.29455]
[1735584706081,0.29452,3398.5,3398.2,0.29455]
[1735584706885,2.66180013,3398.6,3398.2,0.29455]
[1735584707081,0.29452,3398.5,3398.2,0.29455]
[1735584707282,2.66180013,3398.6,3398.2,0.29455]
[1735584708080,2.36728013,3398.6,3398.2,0.29455]
[1735584708281,0.29452,3398.5,3398.1,0.29455]
[1735584708484,0.29452,3398.5,3398.0,3.2078]
[1735584708683,0.29452,3398.5,3398.2,0.29454]
[1735584708885,0.29452,3398.5,3398.1,0.29455]
[1735584709190,3.75006895,3398.5,3398.1,0.29455]
[1735584709993,3.75006895,3398.5,3398.2,0.29454]
[1735584710385,3.75006895,3398.5,3398.2,0.29455]
[1735584710684,3.75006895,3398.5,3398.4,0.29453]
[1735584710685,3.45554895,3398.5,3398.4,0.29453]
[1735584711679,3.45554895,3398.5,3398.4,3.50233]
[1735584711883,1.20054895,3398.8,3398.6,0.29451]
[1735584712190,1.20054895,3398.8,3398.7,0.7205]
[1735584713089,1.49503895,3398.8,3398.7,0.426]
[1735584713291,0.29452,3398.5,3398.4,3.6496]
[1735584714386,0.29452,3398.5,3398.4,3.94413]
[1735584714591,2.36728013,3398.9,3398.4,3.6496]
[1735584714793,0.29452,3398.6,3398.5,0.29451]
[1735584714988,0.29451,3398.6,3398.5,0.4313]
[1735584715787,0.29451,3398.6,3398.5,0.72582]
[1735584716386,0.4436,3399.0,3398.5,0.4313]
[1735584716594,0.4436,3399.0,3398.6,0.2945]
[1735584716595,0.29451,3398.7,3398.6,0.2945]
[1735584717386,4.89377827,3399.4,3398.5,0.4313]
[1735584717591,0.29448,3399.0,3398.9,3.2078]
[1735584719091,0.29447,3399.1,3398.9,3.50229]
[1735584719293,0.29448,3399.0,3398.9,3.2078]
[1735584719496,0.29448,3399.0,3398.9,3.63804076]
[1735584720690,0.29448,3399.0,3398.9,3.2078]
[1735584720996,0.29454,3398.3,3398.2,3.2078]
[1735584721293,0.29454,3398.3,3398.2,3.63862955]
[1735584722392,0.29454,3398.3,3398.2,4.32876506]
[1735584722897,0.29454,3398.3,3398.2,3.63862955]
[1735584723394,0.29454,3398.3,3398.2,3.63934268]
[1735584723792,0.29454,3398.3,3398.2,3.2078]
[1735584723992,0.29454,3398.3,3398.2,3.6394354]
[1735584724498,0.29454,3398.3,3398.2,4.33011942]
[1735584725193,0.29454,3398.3,3398.2,4.32952185]
[1735584726292,4.60777433,3398.8,3398.2,4.32952185]
[1735584726497,4.60777433,3398.8,3398.7,3.50228]
[1735584727001,5.75971791,3399.0,3398.7,8.2078]
[1735584727299,3.21757433,3399.5,3399.4,0.29442]
[1735584727496,3.51199433,3399.5,3399.4,3.2078]
[1735584727703,3.21757433,3399.5,3399.4,3.50223]
[1735584728099,3.21757433,3399.5,3399.4,3.92783772]
[1735584728597,0.4524,3400.2,3399.7,0.2944]
[1735584728797,0.2944,3399.8,3399.7,0.2944]
[1735584728995,0.2944,3399.8,3399.7,0.71961264]
[1735584729599,0.29437,3400.1,3399.9,0.29439]
[1735584729801,0.29439,3399.9,3399.8,3.5022]
[1735584730303,0.29439,3400.0,3399.8,3.5022]